fUSD/lending_fUSD_20250107
["ID","MTS","AMOUNT","RATE_DAILY","PERIOD"]
[347939350,1736228875275,-500.0,9.869e-05,2]
[347939351,1736228875305,-500.0,9.869e-05,2]
[347939352,1736228875338,-500.0,9.869e-05,2]
[347939353,1736228875368,-1235.27,9.869e-05,2]
[347939354,1736228875397,-500.0,9.869e-05,2]
[347939355,1736228875427,-500.0,9.869e-05,2]
[347939356,1736228875456,-500.0,9.869e-05,2]
[347939357,1736228875485,-734.17,9.869e-05,2]
[347939358,1736228875514,-500.0,9.869e-05,2]
[347939359,1736228875548,-500.0,9.869e-05,2]
[347939360,1736228875579,-500.0,9.869e-05,2]
[347939361,1736228875611,-500.0,9.869e-05,2]
[347939362,1736228875642,-151.0,9.869e-05,2]
[347939363,1736228875672,-500.0,9.869e-05,2]
[347939364,1736228875702,-227.43360985,9.869e-05,2]
[347939365,1736228875731,-500.0,9.869e-05,2]
[347939366,1736228875761,-500.0,9.869e-05,2]
[347939367,1736228875791,-1753.38,9.869e-05,2]
[347939368,1736228875820,-500.0,9.869e-05,2]
[347939369,1736228875849,-500.0,9.869e-05,2]
[347939370,1736228875879,-868.13,9.869e-05,2]
[347939371,1736228875912,-746.22,9.869e-05,2]
[347939372,1736228875942,-500.0,9.869e-05,2]
[347939373,1736228875971,-1563.33,9.869e-05,2]
[347939374,1736228876000,-925.94,9.869e-05,2]
[347939375,1736228876029,-500.0,9.869e-05,2]
[347939376,1736228876058,-500.0,9.869e-05,2]
[347939377,1736228876089,-644.88,9.869e-05,2]
[347939378,1736228876122,-500.0,9.869e-05,2]
[347939379,1736228876151,-500.0,9.869e-05,2]
[347939380,1736228876180,-500.0,9.869e-05,2]
[347939381,1736228876210,-500.0,9.869e-05,2]
[347939382,1736228876239,-500.0,9.869e-05,2]
[347939383,1736228876268,-770.28,9.869e-05,2]
[347939384,1736228876300,-629.11,9.869e-05,2]
[347939385,1736228876330,-1088.71,9.869e-05,2]
[347939386,1736228876359,-500.0,9.869e-05,2]
[347939387,1736228876390,-500.0,9.869e-05,2]
[347939388,1736228876424,-631.98,9.869e-05,2]
[347939389,1736228876453,-500.0,9.869e-05,2]
[347939390,1736228876483,-500.0,9.869e-05,2]
[347939391,1736228876512,-500.0,9.869e-05,2]
[347939392,1736228876541,-500.0,9.869e-05,2]
[347939393,1736228876574,-500.0,9.869e-05,2]
[347939394,1736228876603,-500.0,9.869e-05,2]
[347939395,1736228876633,-500.0,9.869e-05,2]
[347939396,1736228876662,-500.0,9.869e-05,2]
[347939397,1736228876691,-500.0,9.869e-05,2]
[347939398,1736228876720,-500.0,9.869e-05,2]
[347939399,1736228876749,-500.0,9.869e-05,2]
[347939400,1736228876777,-500.0,9.869e-05,2]
[347939401,1736228876806,-853.08,9.869e-05,2]
[347939402,1736228876836,-500.0,9.869e-05,2]
[347939403,1736228877084,-500.0,9.869e-05,2]
[347939404,1736228877116,-500.0,9.869e-05,2]
[347939405,1736228877147,-500.0,9.869e-05,2]
[347939406,1736228877177,-500.0,9.869e-05,2]
[347939407,1736228877207,-1065.23,9.869e-05,2]
[347939408,1736228877236,-500.0,9.869e-05,2]
[347939409,1736228877266,-500.0,9.869e-05,2]
[347939410,1736228877296,-1686.21,9.869e-05,2]
[347939411,1736228877326,-946.5,9.869e-05,2]
[347939412,1736228877356,-1660.03,9.869e-05,2]
[347939413,1736228877389,-186.03,9.903e-05,2]
[347939414,1736228877423,-500.0,9.999e-05,2]
[347939415,1736228877452,-35381.83070357,0.0001,2]
[347939416,1736228877480,-294.61555333,0.0001,2]
[347939417,1736228877508,-986.67093332,0.0001,2]
[347939418,1736228877546,-3000.0,0.0001,2]
[347939419,1736228877579,-161.2826547,0.0001,2]
[347939420,1736228877612,-161.28265465,0.0001,2]
[347939421,1736228877645,-161.28265465,0.0001,2]
[347939422,1736228877675,-500.0,0.00010136,2]
[347939423,1736228877705,-500.0,0.00010136,2]
[347939424,1736228877734,-500.0,0.00010136,2]
[347939425,1736228877764,-500.0,0.00010136,2]
[347939426,1736228877793,-500.0,0.00010136,2]
[347939427,1736228877828,-549.55280108,0.00010136,2]
[347939428,1736228877858,-156.43,0.00010137,2]
[347939429,1736228877887,-164.48,0.00010137,2]
[347939430,1736228877916,-500.0,0.00010143,2]
[347939431,1736228877947,-500.0,0.00010143,2]
[347939432,1736228877977,-500.0,0.00010143,2]
[347939433,1736228878005,-500.0,0.00010143,2]
[347939434,1736228878033,-500.0,0.00010143,2]
[347939435,1736228878062,-500.0,0.00010143,2]
[347939436,1736228878092,-500.0,0.00010143,2]
[347939437,1736228878120,-500.0,0.00010143,2]
[347939438,1736228878149,-500.0,0.00010143,2]
[347939439,1736228878177,-500.0,0.00010143,2]
[347939440,1736228878205,-500.0,0.00010143,2]
[347939441,1736228878234,-500.0,0.00010143,2]
[347939442,1736228878264,-500.0,0.00010143,2]
[347939443,1736228878293,-500.0,0.00010143,2]
[347939444,1736228878325,-500.0,0.00010143,2]
[347939445,1736228878355,-529.37,0.00010143,2]
[347939446,1736228878386,-500.0,0.00010143,2]
[347939447,1736228878416,-306.17771042,0.00010143,2]
[347939448,1736228878446,-500.0,0.00010143,2]
[347939449,1736228878476,-549.570057,0.00010143,2]
[347939450,1736228878507,-500.0,0.00010143,2]
[347939451,1736228878537,-500.0,0.00010143,2]
[347939452,1736228878568,-500.0,0.00010143,2]
[347939453,1736228878597,-152.07,0.00010143,2]
[347939454,1736228878628,-500.0,0.00010143,2]
[347939455,1736228878660,-384.70574,0.00010143,2]
[347939456,1736228878689,-378.43,0.00010143,2]
[347939457,1736228878720,-580.71786482,0.00010143,2]
[347939458,1736228878749,-500.0,0.00010143,2]
[347939459,1736228878780,-500.0,0.00010143,2]
[347939460,1736228878810,-724.71,0.00010143,2]
[347939461,1736228878841,-500.0,0.00010143,2]
[347939462,1736228878870,-500.0,0.00010143,2]
[347939463,1736228878900,-500.0,0.00010143,2]
[347939464,1736228878931,-500.0,0.00010143,2]
[347939465,1736228878961,-500.0,0.00010143,2]
[347939466,1736228878991,-500.0,0.00010143,2]
[347939467,1736228879023,-500.0,0.00010143,2]
[347939468,1736228879053,-500.0,0.00010143,2]
[347939469,1736228879086,-1235.27,0.00010143,2]
[347939470,1736228879118,-500.0,0.00010143,2]
[347939471,1736228879150,-500.0,0.00010143,2]
[347939472,1736228879181,-734.17,0.00010143,2]
[347939473,1736228879212,-500.0,0.00010143,2]
[347939474,1736228879242,-500.0,0.00010143,2]
[347939475,1736228879272,-500.0,0.00010143,2]
[347939476,1736228879302,-500.0,0.00010143,2]
[347939477,1736228879335,-500.0,0.00010143,2]
[347939478,1736228879367,-500.0,0.00010143,2]
[347939479,1736228879406,-500.0,0.00010143,2]
[347939480,1736228879440,-1753.38,0.00010143,2]
[347939481,1736228879473,-500.0,0.00010143,2]
[347939482,1736228879504,-500.0,0.00010143,2]
[347939483,1736228879536,-868.13,0.00010143,2]
[347939484,1736228879569,-746.22,0.00010143,2]
[347939485,1736228879602,-500.0,0.00010143,2]
[347939486,1736228879635,-1563.33,0.00010143,2]
[347939487,1736228879668,-925.94,0.00010143,2]
[347939488,1736228879698,-500.0,0.00010143,2]
[347939489,1736228879728,-500.0,0.00010143,2]
[347939490,1736228879759,-644.88,0.00010143,2]
[347939491,1736228879789,-500.0,0.00010143,2]
[347939492,1736228879820,-500.0,0.00010143,2]
[347939493,1736228879852,-500.0,0.00010143,2]
[347939494,1736228879886,-500.0,0.00010143,2]
[347939495,1736228879917,-500.0,0.00010143,2]
[347939496,1736228879947,-770.28,0.00010143,2]
[347939497,1736228879977,-629.11,0.00010143,2]
[347939498,1736228880007,-1088.71,0.00010143,2]
[347939499,1736228880039,-500.0,0.00010143,2]
[347939500,1736228880072,-500.0,0.00010143,2]
[347939501,1736228880106,-631.98,0.00010143,2]
[347939502,1736228880139,-500.0,0.00010143,2]
[347939503,1736228880174,-500.0,0.00010143,2]
[347939504,1736228880206,-500.0,0.00010143,2]
[347939505,1736228880240,-500.0,0.00010143,2]
[347939506,1736228880273,-500.0,0.00010143,2]
[347939507,1736228880306,-500.0,0.00010143,2]
[347939508,1736228880344,-500.0,0.00010143,2]
[347939509,1736228880376,-500.0,0.00010143,2]
[347939510,1736228880409,-500.0,0.00010143,2]
[347939511,1736228880441,-500.0,0.00010143,2]
[347939512,1736228880472,-500.0,0.00010143,2]
[347939513,1736228880504,-500.0,0.00010143,2]
[347939514,1736228880539,-853.08,0.00010143,2]
[347939515,1736228880573,-500.0,0.00010143,2]
[347939516,1736228880607,-500.0,0.00010143,2]
[347939517,1736228880641,-500.0,0.00010143,2]
[347939518,1736228880673,-500.0,0.00010143,2]
[347939519,1736228880917,-1065.23,0.00010143,2]
[347939520,1736228880949,-500.0,0.00010143,2]
[347939521,1736228880981,-1686.21,0.00010143,2]
[347939522,1736228881012,-946.5,0.00010143,2]
[347939523,1736228881042,-1660.03,0.00010143,2]
[347939524,1736228881074,-424.43,0.00010193,2]
[347939525,1736228881106,-1000.0,0.00010291,2]
[347939526,1736228881138,-500.0,0.0001041,2]
[347939527,1736228881170,-270.17077485,0.0001041,2]
[347939528,1736228881202,-500.0,0.0001041,2]
[347939529,1736228881235,-500.0,0.0001041,2]
[347939530,1736228881267,-500.0,0.00010417,2]
[347939531,1736228881301,-500.0,0.00010417,2]
[347939532,1736228881340,-500.0,0.00010417,2]
[347939533,1736228881373,-500.0,0.00010417,2]
[347939534,1736228881406,-500.0,0.00010417,2]
[347939535,1736228881438,-500.0,0.00010417,2]
[347939536,1736228881469,-500.0,0.00010417,2]
[347939537,1736228881501,-500.0,0.00010417,2]
[347939538,1736228881533,-180.93809685,0.00010417,2]
[347939539,1736228881568,-500.0,0.00010417,2]
[347939540,1736228881603,-500.0,0.00010417,2]
[347939541,1736228881636,-500.0,0.00010417,2]
[347939542,1736228881669,-500.0,0.00010417,2]
[347939543,1736228881702,-500.0,0.00010417,2]
[347939544,1736228881734,-500.0,0.00010417,2]
[347939545,1736228881766,-529.37,0.00010417,2]
[347939546,1736228881797,-500.0,0.00010417,2]
[347939547,1736228881832,-500.0,0.00010417,2]
[347939548,1736228881864,-549.570057,0.00010417,2]
[347939549,1736228881895,-500.0,0.00010417,2]
[347939550,1736228881926,-500.0,0.00010417,2]
[347939551,1736228881958,-234.77687392,0.00010417,2]
[347939552,1736228881990,-500.0,0.00010417,2]
[347939553,1736228882021,-384.70574,0.00010417,2]
[347939554,1736228882051,-500.0,0.00010417,2]
[347939555,1736228882084,-500.0,0.00010417,2]
[347939556,1736228882116,-724.71,0.00010417,2]
[347939557,1736228882148,-500.0,0.00010417,2]
[347939558,1736228882181,-500.0,0.00010417,2]
[347939559,1736228882212,-500.0,0.00010417,2]
[347939560,1736228882245,-500.0,0.00010417,2]
[347939561,1736228882277,-500.0,0.00010417,2]
[347939562,1736228882311,-500.0,0.00010417,2]
[347939563,1736228882350,-500.0,0.00010417,2]
[347939564,1736228882384,-500.0,0.00010417,2]
[347939565,1736228882419,-1235.27,0.00010417,2]
[347939566,1736228882451,-500.0,0.00010417,2]
[347939567,1736228882483,-500.0,0.00010417,2]
[347939568,1736228882516,-734.17,0.00010417,2]
[347939569,1736228882550,-473.5779913,0.00010417,2]
[347939570,1736228882586,-500.0,0.00010417,2]
[347939571,1736228882621,-500.0,0.00010417,2]
[347939572,1736228882656,-500.0,0.00010417,2]
[347939573,1736228882689,-151.0,0.00010417,2]
[347939574,1736228882723,-531.88136996,0.00010417,2]
[347939575,1736228882757,-500.0,0.00010417,2]
[347939576,1736228882792,-500.0,0.00010417,2]
[347939577,1736228882827,-1753.38,0.00010417,2]
[347939578,1736228882859,-500.0,0.00010417,2]
[347939579,1736228882891,-500.0,0.00010417,2]
[347939580,1736228882924,-868.13,0.00010417,2]
[347939581,1736228882969,-746.22,0.00010417,2]
[347939582,1736228883013,-1563.33,0.00010417,2]
[347939583,1736228883061,-925.94,0.00010417,2]
[347939584,1736228883107,-500.0,0.00010417,2]
[347939585,1736228883149,-500.0,0.00010417,2]
[347939586,1736228883195,-644.88,0.00010417,2]
[347939587,1736228883241,-500.0,0.00010417,2]
[347939588,1736228883285,-500.0,0.00010417,2]
[347939589,1736228883332,-500.0,0.00010417,2]
[347939590,1736228883375,-500.0,0.00010417,2]
[347939591,1736228883423,-500.0,0.00010417,2]
[347939592,1736228883463,-770.28,0.00010417,2]
[347939593,1736228883508,-629.11,0.00010417,2]
[347939594,1736228883548,-1088.71,0.00010417,2]
[347939595,1736228883595,-500.0,0.00010417,2]
[347939596,1736228883633,-500.0,0.00010417,2]
[347939597,1736228883673,-631.98,0.00010417,2]
[347939598,1736228883713,-500.0,0.00010417,2]
[347939599,1736228883750,-500.0,0.00010417,2]
[347939600,1736228883789,-500.0,0.00010417,2]
[347939601,1736228883826,-500.0,0.00010417,2]
[347939602,1736228883866,-500.0,0.00010417,2]
[347939603,1736228883904,-545.36332179,0.00010417,2]
[347939604,1736228883943,-500.0,0.00010417,2]
[347939605,1736228883983,-500.0,0.00010417,2]
[347939606,1736228884022,-500.0,0.00010417,2]
[347939607,1736228884061,-586.36,0.00010417,2]
[347939608,1736228884102,-523.71418173,0.00010417,2]
[347939609,1736228884143,-500.0,0.00010417,2]
[347939610,1736228884183,-853.08,0.00010417,2]
[347939611,1736228884226,-481.34383931,0.00010417,2]
[347939612,1736228884267,-500.0,0.00010417,2]
[347939613,1736228884308,-500.0,0.00010417,2]
[347939614,1736228884352,-500.0,0.00010417,2]
[347939615,1736228884398,-1065.23,0.00010417,2]
[347939616,1736228884439,-500.0,0.00010417,2]
[347939617,1736228884481,-1686.21,0.00010417,2]
[347939618,1736228884520,-946.5,0.00010417,2]
[347939619,1736228884565,-1194.33,0.00010423,2]
[347939620,1736228884605,-711.68623832,0.00010457,2]
[347939621,1736228884645,-1348.069,0.00010479,2]
[347939622,1736228884683,-150.0,0.00010479,2]
[347939623,1736228884722,-122992.33977422,0.00010599,2]
[347939624,1736228884764,-161.28265465,0.0001065,2]
[347939625,1736228884803,-500.0,0.00010684,2]
[347939626,1736228884843,-500.0,0.00010684,2]
[347939627,1736228884880,-500.0,0.00010691,2]
[347939628,1736228884917,-359.91438335,0.00010691,2]
[347939629,1736228884954,-500.0,0.00010691,2]
[347939630,1736228884992,-249.99233257,0.00010691,2]
[347939631,1736228885032,-373.51579406,0.00010691,2]
[347939632,1736228885072,-528.95214383,0.00010691,2]
[347939633,1736228885111,-500.0,0.00010691,2]
[347939634,1736228885150,-500.0,0.00010691,2]
[347939635,1736228885189,-500.0,0.00010691,2]
[347939636,1736228885227,-248.96687431,0.00010691,2]
[347939637,1736228885265,-500.0,0.00010691,2]
[347939638,1736228885305,-500.0,0.00010691,2]
[347939639,1736228885348,-500.0,0.00010691,2]
[347939640,1736228885389,-157.17233148,0.00010691,2]
[347939641,1736228885429,-529.37,0.00010691,2]
[347939642,1736228885469,-500.0,0.00010691,2]
[347939643,1736228885832,-500.0,0.00010691,2]
[347939644,1736228885866,-549.570057,0.00010691,2]
[347939645,1736228885898,-594.15325959,0.00010691,2]
[347939646,1736228885931,-500.0,0.00010691,2]
[347939647,1736228885963,-312.73142376,0.00010691,2]
[347939648,1736228885994,-384.70574,0.00010691,2]
[347939649,1736228886027,-500.0,0.00010691,2]
[347939650,1736228886059,-500.0,0.00010691,2]
[347939651,1736228886092,-724.71,0.00010691,2]
[347939652,1736228886123,-500.0,0.00010691,2]
[347939653,1736228886153,-406.44308367,0.00010691,2]
[347939654,1736228886184,-500.0,0.00010691,2]
[347939655,1736228886216,-500.0,0.00010691,2]
[347939656,1736228886248,-500.0,0.00010691,2]
[347939657,1736228886280,-500.0,0.00010691,2]
[347939658,1736228886312,-500.0,0.00010691,2]
[347939659,1736228886348,-500.0,0.00010691,2]
[347939660,1736228886382,-1235.27,0.00010691,2]
[347939661,1736228886417,-584.71,0.00010691,2]
[347939662,1736228886450,-500.0,0.00010691,2]
[347939663,1736228886484,-734.17,0.00010691,2]
[347939664,1736228886516,-161.52469209,0.00010691,2]
[347939665,1736228886549,-500.0,0.00010691,2]
[347939666,1736228886585,-500.0,0.00010691,2]
[347939667,1736228886617,-439.58724419,0.00010691,2]
[347939668,1736228886650,-500.0,0.00010691,2]
[347939669,1736228886682,-1753.38,0.00010691,2]
[347939670,1736228886714,-500.0,0.00010691,2]
[347939671,1736228886746,-500.0,0.00010691,2]
[347939672,1736228886779,-868.13,0.00010691,2]
[347939673,1736228886811,-746.22,0.00010691,2]
[347939674,1736228886843,-1563.33,0.00010691,2]
[347939675,1736228886877,-925.94,0.00010691,2]
[347939676,1736228886909,-500.0,0.00010691,2]
[347939677,1736228886939,-500.0,0.00010691,2]
[347939678,1736228886970,-644.88,0.00010691,2]
[347939679,1736228887000,-500.0,0.00010691,2]
[347939680,1736228887031,-500.0,0.00010691,2]
[347939681,1736228887061,-500.0,0.00010691,2]
[347939682,1736228887093,-173.54124802,0.00010691,2]
[347939683,1736228887124,-500.0,0.00010691,2]
[347939684,1736228887155,-770.28,0.00010691,2]
[347939685,1736228887185,-629.11,0.00010691,2]
[347939686,1736228887216,-1088.71,0.00010691,2]
[347939687,1736228887247,-500.0,0.00010691,2]
[347939688,1736228887279,-500.0,0.00010691,2]
[347939689,1736228887311,-631.98,0.00010691,2]
[347939690,1736228887347,-500.0,0.00010691,2]
[347939691,1736228887380,-500.0,0.00010691,2]
[347939692,1736228887416,-500.0,0.00010691,2]
[347939693,1736228887450,-500.0,0.00010691,2]
[347939694,1736228887483,-500.0,0.00010691,2]
[347939695,1736228887515,-290.21920724,0.00010691,2]
[347939696,1736228887549,-500.0,0.00010691,2]
[347939697,1736228887584,-340.18683886,0.00010691,2]
[347939698,1736228887618,-500.0,0.00010691,2]
[347939699,1736228887651,-853.08,0.00010691,2]
[347939700,1736228887683,-616.67919561,0.00010691,2]
[347939701,1736228887716,-500.0,0.00010691,2]
[347939702,1736228887747,-1065.23,0.00010691,2]
[347939703,1736228887779,-500.0,0.00010691,2]
[347939704,1736228887811,-1686.21,0.00010691,2]
[347939705,1736228887843,-946.5,0.00010691,2]
[347939706,1736228887873,-500.0,0.00010699,2]
[347939707,1736228887904,-194.24092762,0.0001079,2]
[347939708,1736228887935,-705.6464869,0.0001079,2]
[347939709,1736228887968,-3863.24979836,0.0001079,2]
[347939710,1736228888003,-150.0,0.00010793,2]
[347939711,1736228888034,-500.0,0.00010798,2]
[347939712,1736228888065,-500.0,0.00010799,2]
[347939713,1736228888096,-500.0,0.00010799,2]
[347939714,1736228888127,-500.0,0.00010799,2]
[347939715,1736228888158,-500.0,0.00010799,2]
[347939716,1736228888190,-500.0,0.00010799,2]
[347939717,1736228888221,-500.0,0.00010799,2]
[347939718,1736228888252,-500.0,0.00010799,2]
[347939719,1736228888290,-500.0,0.00010799,2]
[347939720,1736228888325,-500.0,0.00010799,2]
[347939721,1736228888358,-500.0,0.00010799,2]
[347939722,1736228888391,-500.0,0.00010799,2]
[347939723,1736228888424,-604.42,0.00010799,2]
[347939724,1736228888456,-500.0,0.00010799,2]
[347939725,1736228888490,-500.0,0.00010799,2]
[347939726,1736228888522,-500.0,0.00010799,2]
[347939727,1736228888553,-500.0,0.00010799,2]
[347939728,1736228888588,-500.0,0.00010799,2]
[347939729,1736228888621,-500.0,0.00010799,2]
[347939730,1736228888654,-500.0,0.00010799,2]
[347939731,1736228888688,-500.0,0.00010799,2]
[347939732,1736228888721,-500.0,0.00010799,2]
[347939733,1736228888753,-500.0,0.00010799,2]
[347939734,1736228888784,-500.0,0.00010799,2]
[347939735,1736228888817,-500.0,0.00010799,2]
[347939736,1736228888848,-500.0,0.00010799,2]
[347939737,1736228888878,-500.0,0.00010799,2]
[347939738,1736228888915,-500.0,0.00010799,2]
[347939739,1736228888947,-500.0,0.00010799,2]
[347939740,1736228888977,-485.07,0.00010799,2]
[347939741,1736228889008,-500.0,0.00010799,2]
[347939742,1736228889042,-500.0,0.00010799,2]
[347939743,1736228889074,-500.0,0.00010799,2]
[347939744,1736228889104,-500.0,0.00010799,2]
[347939745,1736228889135,-500.0,0.00010799,2]
[347939746,1736228889169,-500.0,0.00010799,2]
[347939747,1736228889199,-500.0,0.00010799,2]
[347939748,1736228889230,-500.0,0.00010799,2]
[347939749,1736228889260,-500.0,0.00010799,2]
[347939750,1736228889290,-500.0,0.00010799,2]
[347939751,1736228889324,-500.0,0.00010799,2]
[347939752,1736228889356,-500.0,0.00010799,2]
[347939753,1736228889390,-500.0,0.00010799,2]
[347939754,1736228889424,-500.0,0.00010799,2]
[347939755,1736228889456,-500.89,0.00010799,2]
[347939756,1736228889744,-500.0,0.00010799,2]
[347939757,1736228889777,-599.39,0.00010799,2]
[347939758,1736228889807,-500.0,0.00010799,2]
[347939759,1736228889837,-500.0,0.00010799,2]
[347939760,1736228889868,-500.0,0.00010799,2]
[347939761,1736228889898,-500.0,0.00010799,2]
[347939762,1736228889928,-500.0,0.00010799,2]
[347939763,1736228889958,-500.0,0.00010799,2]
[347939764,1736228889988,-500.0,0.00010799,2]
[347939765,1736228890017,-500.0,0.00010799,2]
[347939766,1736228890047,-158.87,0.00010799,2]
[347939767,1736228890079,-610.23,0.00010799,2]
[347939768,1736228890111,-500.0,0.00010799,2]
[347939769,1736228890141,-500.0,0.00010799,2]
[347939770,1736228890172,-500.0,0.00010799,2]
[347939771,1736228890203,-511.36,0.00010799,2]
[347939772,1736228890233,-500.0,0.00010799,2]
[347939773,1736228890264,-500.0,0.00010799,2]
[347939774,1736228890295,-500.0,0.00010799,2]
[347939775,1736228890330,-500.0,0.00010799,2]
[347939776,1736228890363,-500.0,0.00010799,2]
[347939777,1736228890395,-500.0,0.00010799,2]
[347939778,1736228890428,-617.2,0.00010799,2]
[347939779,1736228890459,-500.0,0.00010799,2]
[347939780,1736228890491,-500.0,0.00010799,2]
[347939781,1736228890521,-500.0,0.00010799,2]
[347939782,1736228890569,-500.0,0.00010799,2]
[347939783,1736228890605,-500.0,0.00010799,2]
[347939784,1736228890639,-500.0,0.00010799,2]
[347939785,1736228890671,-500.0,0.00010799,2]
[347939786,1736228890704,-500.0,0.00010799,2]
[347939787,1736228890736,-250.22825636,0.00010799,2]
[347939788,1736228890769,-500.0,0.00010799,2]
[347939789,1736228890801,-500.0,0.00010799,2]
[347939790,1736228890832,-500.0,0.00010799,2]
[347939791,1736228890864,-500.0,0.00010799,2]
[347939792,1736228890897,-500.0,0.00010799,2]
[347939793,1736228890931,-500.0,0.00010799,2]
[347939794,1736228890961,-500.0,0.00010799,2]
[347939795,1736228890992,-427.86132305,0.00010799,2]
[347939796,1736228891023,-500.0,0.00010799,2]
[347939797,1736228891055,-500.0,0.00010799,2]
[347939798,1736228891085,-500.0,0.00010799,2]
[347939799,1736228891116,-506.0,0.00010799,2]
[347939800,1736228891149,-500.0,0.00010799,2]
[347939801,1736228891180,-500.0,0.00010799,2]
[347939802,1736228891212,-500.0,0.00010799,2]
[347939803,1736228891243,-500.0,0.00010799,2]
[347939804,1736228891275,-500.0,0.00010799,2]
[347939805,1736228891305,-500.0,0.00010799,2]
[347939806,1736228891338,-500.0,0.00010799,2]
[347939807,1736228891369,-500.0,0.00010799,2]
[347939808,1736228891401,-500.0,0.00010799,2]
[347939809,1736228891435,-500.0,0.00010799,2]
[347939810,1736228891466,-500.0,0.00010799,2]
[347939811,1736228891498,-500.0,0.00010799,2]
[347939812,1736228891529,-500.0,0.00010799,2]
[347939813,1736228891562,-500.0,0.00010799,2]
[347939814,1736228891597,-500.0,0.00010799,2]
[347939815,1736228891629,-500.0,0.00010799,2]
[347939816,1736228891661,-500.0,0.00010799,2]
[347939817,1736228891692,-500.0,0.00010799,2]
[347939818,1736228891724,-500.0,0.00010799,2]
[347939819,1736228891756,-500.0,0.00010799,2]
[347939820,1736228891794,-500.0,0.00010799,2]
[347939821,1736228891828,-500.0,0.00010799,2]
[347939822,1736228891862,-500.0,0.00010799,2]
[347939823,1736228891895,-540.55812474,0.00010799,2]
[347939824,1736228891927,-500.0,0.00010799,2]
[347939825,1736228891959,-500.0,0.00010799,2]
[347939826,1736228891992,-500.0,0.00010799,2]
[347939827,1736228892024,-500.0,0.00010799,2]
[347939828,1736228892056,-500.0,0.00010799,2]
[347939829,1736228892089,-500.0,0.00010799,2]
[347939830,1736228892120,-500.0,0.00010799,2]
[347939831,1736228892153,-500.0,0.00010799,2]
[347939832,1736228892186,-500.0,0.00010799,2]
[347939833,1736228892217,-500.0,0.00010799,2]
[347939834,1736228892249,-500.0,0.00010799,2]
[347939835,1736228892281,-500.0,0.00010799,2]
[347939836,1736228892414,-500.0,0.00010799,2]
[347939837,1736228892447,-621.68,0.00010799,2]
[347939838,1736228892479,-500.0,0.00010799,2]
[347939839,1736228892509,-530.04,0.00010799,2]
[347939840,1736228892541,-500.0,0.00010799,2]
[347939841,1736228892576,-500.0,0.00010799,2]
[347939842,1736228892607,-500.0,0.00010799,2]
[347939843,1736228892638,-500.0,0.00010799,2]
[347939844,1736228892669,-500.0,0.00010799,2]
[347939845,1736228892699,-500.0,0.00010799,2]
[347939846,1736228892729,-500.0,0.00010799,2]
[347939847,1736228892760,-500.0,0.00010799,2]
[347939848,1736228892791,-500.0,0.00010799,2]
[347939849,1736228892822,-500.0,0.00010799,2]